bitfinex/quotes_ETHUSD_20240817
["timestamp","ask_amount","ask_price","bid_price","bid_amount"]
[1723903290788,2.495,2611.0,2610.6,5.74567]
[1723903290998,2.495,2611.0,2610.7,2.87279]
[1723903291286,2.495,2611.0,2610.6,5.74566]
[1723903291719,2.495,2611.0,2610.7,2.87276]
[1723903292887,2.495,2611.3,2610.8,2.87266]
[1723903293535,2.495,2611.3,2610.8,5.74528]
[1723903293700,2.495,2611.2,2610.8,2.87262]
[1723903294219,2.495,2611.2,2610.8,5.74524]
[1723903294628,2.495,2611.2,2610.8,5.74523]
[1723903295137,2.495,2611.2,2610.9,2.87255]
[1723903295442,2.287,2611.6,2611.1,2.87235]
[1723903296003,2.287,2611.6,2611.0,2.8724]
[1723903296205,2.802874,2611.6,2611.0,2.8724]
[1723903296398,5.15883,2611.6,2611.0,2.8724]
[1723903296927,2.287,2611.6,2611.1,2.87232]
[1723903297737,5.15885,2611.6,2611.0,2.8724]
[1723903297933,5.15885,2611.6,2611.0,2.87239]
[1723903298137,2.287,2611.5,2611.0,5.74479]
[1723903298432,2.287,2611.5,2611.1,2.87233]
[1723903300901,2.287,2611.5,2611.0,2.87239]
[1723903301345,2.287,2611.5,2611.1,2.87235]
[1723903302649,2.287,2611.5,2611.2,2.87222]
[1723903302818,2.287,2611.7,2611.2,2.87222]
[1723903304539,2.287,2611.7,2611.2,5.74438]
[1723903304915,2.287,2611.7,2611.2,2.87216]
[1723903305116,2.287,2611.7,2611.2,5.74434]
[1723903305519,2.287,2611.7,2611.2,2.87216]
[1723903307822,2.287,2611.7,2611.2,5.74433]
[1723903308029,3.607,2611.7,2611.2,2.87216]
[1723903308777,3.607,2611.7,2611.2,5.74434]
[1723903308957,3.607,2611.7,2611.2,2.87216]
[1723903311665,3.60604277,2611.7,2611.2,2.87216]
[1723903311977,2.28604277,2611.7,2610.8,6.6967]
[1723903312176,5.74244,2612.2,2611.5,2.87183]
[1723903312375,5.74244,2612.2,2611.6,2.87174]
[1723903312376,1.32,2612.1,2611.6,2.87174]
[1723903312585,1.894244,2612.1,2611.6,2.87174]
[1723903312876,1.32,2612.1,2611.6,2.87174]
[1723903313098,1.32,2612.1,2611.1,2.3767]
[1723903313099,4.19176,2611.7,2611.1,2.87229]
[1723903313372,1.32,2611.4,2610.9,2.87249]
[1723903313616,1.32,2611.4,2610.7,3.0]
[1723903313617,2.87213,2611.3,2610.7,3.0]
[1723903313889,2.87213,2611.3,2610.7,2.87273]
[1723903314028,1.32,2611.2,2610.7,2.87273]
[1723903314667,2.287,2611.1,2610.7,2.87273]
[1723903315245,2.287,2611.1,2610.9,2.87257]
[1723903318162,2.287,2611.1,2611.0,2.87246]
[1723903318964,2.287,2611.1,2610.9,2.87257]
[1723903321878,2.287,2611.1,2610.9,2.87251]
[1723903322978,2.287,2611.1,2611.0,2.87246]
[1723903323166,2.287,2611.1,2610.8,2.87257]
[1723903324082,2.287,2611.1,2610.9,5.74512]
[1723903324282,2.287,2611.1,2611.0,2.87246]
[1723903325043,2.287,2611.1,2610.9,2.87256]
[1723903325845,2.287,2611.1,2610.9,2.8725]
[1723903327679,2.3066,2611.3,2610.9,2.8725]
[1723903331286,4.19231,2611.2,2610.7,2.87271]
[1723903331452,2.3066,2611.1,2610.7,2.87271]
[1723903333749,2.3066,2611.1,2610.8,2.87267]
[1723903337397,2.3066,2611.1,2610.7,2.87271]
[1723903339294,2.3066,2611.1,2610.7,5.74544]
[1723903339472,2.3066,2611.1,2610.8,4.20512731]
[1723903339673,2.3066,2611.1,2610.8,2.87266]
[1723903342380,2.3066,2611.1,2610.9,2.87256]
[1723903348533,2.3066,2611.1,2610.9,2.87251]
[1723903348771,10.32175,2611.7,2610.6,4.41283133]
[1723903348772,1.32,2611.5,2610.7,3.67240133]
[1723903349048,2.3886,2611.6,2611.2,5.74432]
[1723903349248,2.3886,2611.6,2611.2,2.87216]
[1723903350248,2.3886,2611.6,2611.2,5.74434]
[1723903350541,2.3886,2611.6,2611.2,2.87216]
[1723903350906,3.7086,2611.6,2611.2,2.87216]
[1723903352514,3.7086,2611.6,2611.3,2.87211]
[1723903352718,2.3886,2611.6,2611.3,2.87211]
[1723903353012,2.3886,2611.6,2611.2,5.74433]
[1723903353620,2.3886,2611.6,2611.2,2.87216]
[1723903353822,2.3886,2611.6,2611.4,2.87201]
[1723903356064,2.3886,2611.6,2611.4,2.87196]
[1723903359456,2.3886,2611.6,2611.0,3.09724816]
[1723903359457,1.32,2611.5,2611.0,2.87239]
[1723903359690,2.4377,2611.4,2611.0,5.74475]
[1723903360556,2.4377,2611.4,2611.1,2.87233]
[1723903361467,2.4377,2611.4,2611.2,2.87223]
[1723903364022,2.4377,2611.4,2611.3,2.87213]
[1723903364587,2.4377,2611.4,2611.2,5.74439]
[1723903365053,2.4377,2611.4,2611.3,2.87213]
[1723903370014,2.4377,2611.4,2611.2,2.87216]
[1723903371091,2.4377,2611.4,2611.1,2.87233]
[1723903376723,2.4389,2611.2,2610.6,0.80404816]
[1723903377008,0.37577,2611.4,2610.6,0.80404816]
[1723903377009,2.4389,2611.0,2610.6,2.87283]
[1723903377785,2.4389,2611.0,2610.6,5.74567]
[1723903377985,1.32,2610.9,2610.4,3.67710816]
[1723903378306,1.32,2610.9,2610.1,2.4701]
[1723903378307,1.32,2610.5,2610.1,3.67748816]
[1723903378618,2.4389,2610.4,2610.0,2.8735]
[1723903378774,2.4389,2610.4,2610.0,5.74699]
[1723903378982,2.4389,2610.4,2610.0,2.87349]
[1723903379614,2.4389,2610.4,2610.1,2.87339]
[1723903381921,2.4389,2610.4,2610.0,5.74699]
[1723903382220,2.4389,2610.4,2610.0,2.87349]
[1723903382221,3.7589,2610.4,2610.0,2.87349]
[1723903382418,3.7589,2610.4,2609.8,2.87371]
[1723903382419,1.32,2610.2,2609.8,2.87371]
[1723903382625,1.32,2610.0,2609.6,4.8732168]
[1723903382828,1.32,2610.0,2609.6,2.87393]
[1723903383124,2.4389,2610.1,2609.8,2.87374]
[1723903385199,2.4389,2610.1,2609.6,2.8739]
[1723903386097,2.4389,2610.1,2609.7,2.87382]
[1723903387491,1.32,2610.0,2609.6,2.8739]
[1723903388527,2.4389,2609.9,2609.6,2.8739]
[1723903389038,2.4389,2609.9,2609.6,5.74784]
[1723903389212,2.4389,2609.9,2609.6,2.8739]
[1723903394393,2.4389,2609.9,2609.6,5.74783]
[1723903394812,2.4389,2609.9,2609.6,2.8739]
[1723903395013,2.4389,2609.9,2609.4,2.87413]
[1723903395621,2.4389,2609.9,2609.5,2.87404]
[1723903396217,2.3463,2609.7,2609.3,2.87433]
[1723903398333,2.3463,2609.7,2609.4,2.87422]
[1723903399718,2.3463,2609.7,2609.3,5.7486]
[1723903399908,2.3463,2609.7,2609.3,2.87427]
[1723903403542,2.3463,2609.7,2609.3,5.74854]
[1723903403905,2.3463,2609.7,2609.6,2.874]
[1723903404237,10.32327,2610.3,2609.8,2.87371]
[1723903404238,2.3463,2610.2,2609.8,2.87371]
[1723903405837,2.3463,2610.2,2609.9,2.87365]
[1723903414045,2.3463,2610.2,2609.7,2.87383]
[1723903414225,2.3463,2610.2,2609.7,5.74765]
[1723903415254,2.3463,2610.2,2609.8,2.87376]
[1723903419019,2.3463,2610.2,2609.7,2.87382]
[1723903420057,2.3463,2610.2,2609.7,5.74765]
[1723903420279,2.3463,2610.2,2609.7,2.87382]
[1723903420655,2.3463,2610.2,2609.7,5.74765]
[1723903420882,2.3463,2610.2,2609.7,2.87382]
[1723903421777,2.3463,2610.2,2609.7,5.74765]
[1723903421996,2.3463,2610.2,2609.8,2.87376]
[1723903423750,2.3463,2610.2,2609.9,2.87367]
[1723903424647,2.3463,2610.2,2609.7,5.7476]
[1723903424847,2.3463,2610.2,2609.8,2.87375]
[1723903425447,2.34534222,2610.2,2609.8,2.87375]
[1723903432194,2.34534222,2610.2,2609.8,5.74746]
[1723903432521,2.34534222,2610.2,2609.8,2.87371]
[1723903436788,2.4835,2610.0,2609.8,2.87371]
[1723903436987,2.4835,2610.0,2609.5,0.80404816]
[1723903436988,2.4835,2609.8,2609.5,0.80404816]
[1723903437219,3.8035,2609.7,2609.5,3.0]
[1723903437522,2.4835,2609.6,2609.5,3.0]
[1723903437820,2.4835,2609.6,2609.4,3.0]
[1723903438008,2.4835,2609.4,2609.1,0.80404816]
[1723903438190,2.4835,2609.4,2609.0,2.87457]
[1723903438390,2.4835,2609.4,2609.1,1.33332451]
[1723903438602,2.4835,2609.4,2609.0,5.74915]
[1723903440363,2.4835,2609.4,2609.2,2.87442]
[1723903441419,2.4835,2609.4,2609.0,5.74913]
[1723903441655,2.4835,2609.4,2609.1,2.87453]
[1723903441820,2.4835,2609.4,2609.0,2.87456]
[1723903442026,2.4835,2609.4,2609.0,5.74915]
[1723903442336,2.4835,2609.4,2609.0,2.87456]
[1723903442769,1.32,2609.3,2608.8,5.7496]
[1723903442971,1.32,2609.3,2608.9,2.87475]
[1723903442972,2.4835,2609.2,2608.9,2.87475]
[1723903443739,2.4835,2609.2,2608.8,2.87478]
[1723903444077,2.4835,2609.2,2608.8,5.7496]
[1723903444244,2.4835,2609.2,2608.8,2.87478]
[1723903444643,2.4835,2609.2,2608.8,5.74958]
[1723903444845,2.4835,2609.2,2609.0,5.74917]
[1723903445043,2.4835,2609.2,2609.0,2.87458]
[1723903445272,2.4835,2609.2,2609.0,5.74918]
[1723903445866,2.4835,2609.2,2609.0,2.87458]
[1723903446172,2.4835,2609.2,2609.0,5.74918]
[1723903447875,2.4835,2609.2,2609.0,2.87458]
[1723903448383,2.4835,2609.2,2609.0,5.74918]
[1723903448674,2.4835,2609.2,2609.0,2.87458]
[1723903451787,2.4835,2609.2,2608.8,2.87481]
[1723903452799,3.8035,2609.2,2608.8,2.87481]
[1723903453145,2.4835,2609.1,2608.8,2.87481]
[1723903454989,2.4835,2609.1,2608.9,2.87475]
[1723903456264,1.32,2609.0,2608.7,3.0]
[1723903456562,1.32,2609.0,2608.8,2.87488]
[1723903457457,2.4835,2609.1,2608.8,2.87488]
[1723903460485,2.4835,2609.1,2608.9,2.87476]
[1723903460686,2.4835,2609.1,2609.0,2.87466]
[1723903460896,1.32,2609.4,2609.1,2.87452]
[1723903461105,2.87402,2609.6,2608.7,3.0]
[1723903461106,2.4297,2609.6,2609.0,2.3051]
[1723903461269,2.4297,2609.6,2609.5,2.87411]
[1723903470232,2.4297,2609.6,2609.3,2.87423]
[1723903470417,3.7497,2609.6,2609.3,2.87423]
[1723903471415,3.7497,2609.6,2609.3,5.74853]
[1723903471616,3.7497,2609.6,2609.4,2.87421]
[1723903473748,2.4297,2609.5,2609.3,2.87426]
[1723903474043,2.4297,2609.5,2609.3,5.74852]
[1723903474248,2.4297,2609.5,2609.3,2.87426]
[1723903474540,2.4297,2609.5,2609.3,5.74852]
[1723903475149,2.4297,2609.5,2609.4,2.87422]
[1723903475698,2.2971,2609.7,2609.4,2.87422]
[1723903476558,2.2971,2609.7,2609.5,2.8741]
[1723903476790,2.2971,2609.9,2609.2,1.32]
[1723903477063,2.2971,2609.9,2609.8,2.87378]
[1723903481239,1.32,2610.2,2609.9,2.87365]
[1723903481240,2.2971,2610.1,2609.9,2.87365]
[1723903484285,2.2971,2610.1,2609.9,2.8736]
[1723903484487,2.2971,2610.4,2610.2,2.87328]
[1723903485172,19.77,2611.0,2610.0,2.87352]
[1723903485173,7.45,2611.0,2610.0,2.87352]
[1723903485473,2.2971,2610.9,2610.5,2.87294]
[1723903485661,4.64934,2610.9,2610.5,2.87294]
[1723903486372,4.64934,2610.9,2610.4,2.87312]
[1723903486578,4.64934,2610.9,2610.5,2.873]
[1723903487148,4.64934,2610.9,2610.4,2.87306]
[1723903487347,4.64934,2610.9,2610.4,2.87305]
[1723903487554,4.64934,2610.9,2610.4,5.74611]
[1723903488385,3.6171,2610.9,2610.4,5.74611]
[1723903488581,3.6171,2610.9,2610.4,2.87305]
[1723903488783,3.6171,2610.9,2610.4,5.7461]
[1723903488988,3.6171,2610.9,2610.4,2.87305]
[1723903489283,2.2971,2610.8,2610.4,2.87305]
[1723903490279,3.6171,2610.8,2610.5,2.87301]
[1723903490680,3.6171,2610.8,2610.6,2.87289]
[1723903491357,3.6171,2610.8,2610.4,5.74607]
[1723903493201,3.6171,2610.8,2610.5,2.87299]
[1723903496985,9.7433,2611.0,2610.6,2.8729]
[1723903497194,9.7433,2611.0,2610.8,2.87267]
[1723903500033,2.2933,2611.2,2610.5,3.7579]
[1723903500340,2.2933,2611.2,2611.0,2.87236]
[1723903500547,2.2933,2611.2,2611.1,2.87235]
[1723903500889,9.7433,2611.4,2611.1,2.87235]
[1723903501131,2.2933,2611.4,2611.1,2.87235]
[1723903501801,2.2933,2611.4,2611.2,2.87222]
[1723903502000,2.2933,2611.6,2611.3,2.87206]
[1723903504298,2.2933,2611.6,2611.2,2.87215]
[1723903504499,4.52352276,2611.6,2611.2,2.87215]
[1723903507196,2.2933,2611.6,2611.2,2.87215]
[1723903507628,2.2933,2611.6,2611.2,5.74433]
[1723903508036,2.2933,2611.6,2611.2,2.87215]
[1723903508834,2.2933,2611.6,2611.2,5.74433]
[1723903509843,2.2933,2611.6,2611.2,2.87215]
[1723903510002,2.2933,2611.6,2611.2,5.74433]
[1723903510204,2.2933,2611.6,2611.2,2.87215]
[1723903510525,2.2933,2611.6,2611.2,5.74433]
[1723903510840,2.2933,2611.6,2611.2,2.87215]
[1723903511636,2.2933,2611.6,2611.3,2.87213]
[1723903513630,2.2933,2611.6,2611.1,2.87225]
[1723903513832,2.2933,2611.5,2611.0,5.74479]
[1723903514003,2.2933,2611.5,2611.1,2.87229]
[1723903515239,2.2933,2611.5,2611.0,2.87239]
[1723903515445,2.2933,2611.5,2611.0,5.74477]
[1723903515846,2.2933,2611.5,2611.0,2.87238]
[1723903516031,2.2933,2611.5,2611.2,2.87222]
[1723903523034,2.2933,2611.5,2611.0,2.87238]
[1723903523240,3.675591,2611.5,2611.0,2.87238]
[1723903523416,2.4235,2611.4,2611.0,2.87238]
[1723903524047,1.32,2611.3,2611.0,2.87238]
[1723903525060,2.4235,2611.2,2611.0,2.87238]
[1723903525717,2.4235,2611.2,2611.0,5.74478]
[1723903526159,2.4235,2611.2,2611.1,2.87235]
[1723903526485,2.4235,2611.4,2611.1,2.87235]
[1723903530941,2.4235,2611.4,2611.2,2.87222]
[1723903531536,2.4235,2611.4,2611.3,2.87213]
[1723903531739,1.32,2611.7,2611.3,2.87213]
[1723903531740,2.4235,2611.6,2611.3,2.87213]
[1723903532927,2.4235,2611.6,2611.5,2.87191]
[1723903533162,1.32,2611.9,2611.8,2.87158]
[1723903533163,2.4235,2611.9,2611.8,2.87158]
[1723903534869,2.4235,2611.9,2611.6,2.8718]
[1723903535094,2.4235,2611.9,2611.6,5.74353]
[1723903535289,2.4235,2611.9,2611.7,2.87166]
[1723903537400,2.4235,2611.9,2611.8,2.87158]
[1723903537700,2.4235,2612.3,2612.0,2.8713]
[1723903538200,2.4235,2612.3,2612.0,5.7426]
[1723903538403,2.4235,2612.3,2612.0,2.8713]
[1723903538698,2.42254222,2612.3,2612.0,2.8713]
[1723903539205,2.42254222,2612.3,2612.0,2.87129]
[1723903539500,2.42254222,2612.3,2612.2,2.87114]
[1723903539674,1.32,2612.6,2612.2,2.87114]
[1723903539880,1.32,2612.6,2612.2,2.87107]
[1723903540302,1.32,2612.6,2612.0,2.87126]
[1723903540541,1.32,2612.6,2612.1,2.87124]
[1723903540667,1.32,2612.4,2612.1,2.87124]
[1723903541297,1.32,2612.4,2612.0,2.87126]
[1723903541818,2.3742,2612.3,2612.0,2.87126]
[1723903541967,1.32,2612.2,2611.8,2.87148]
[1723903542174,1.32,2612.2,2611.9,3.0]
[1723903544123,2.3742,2612.1,2611.9,3.0]
[1723903544463,2.3742,2612.1,2611.7,2.87166]
[1723903545958,2.3742,2612.1,2611.8,2.87157]
[1723903546343,2.3742,2612.1,2611.9,2.87143]
[1723903546683,2.3742,2612.1,2611.8,2.87157]
[1723903547173,2.3742,2612.1,2611.8,5.74309]
[1723903547672,2.3742,2612.1,2611.8,5.74304]
[1723903547971,2.3742,2612.1,2611.9,2.8714]
[1723903548185,2.3742,2612.3,2612.0,2.87136]
[1723903548881,2.3742,2612.3,2611.9,2.8714]
[1723903549182,2.3742,2612.3,2611.9,5.7428]
[1723903549489,2.3742,2612.3,2611.9,5.74281]
[1723903549787,2.3742,2612.3,2612.0,2.87136]
[1723903550736,3.6942,2612.3,2612.0,2.87136]
[1723903550935,5.382794,2612.3,2611.9,2.87146]
[1723903552147,5.382794,2612.3,2611.9,5.74292]
[1723903552401,3.6942,2612.3,2612.0,2.87135]
[1723903552951,2.3742,2612.3,2612.0,2.87135]
[1723903553998,3.6942,2612.3,2611.9,2.87146]
[1723903554295,3.6942,2612.3,2611.9,2.87141]
[1723903555092,3.6942,2612.3,2611.9,5.74282]
[1723903555803,2.3742,2612.3,2612.0,2.87135]
[1723903557304,3.6956,2612.5,2612.1,2.87123]
[1723903557611,2.3756,2612.5,2612.3,2.87102]
[1723903561722,2.3756,2612.5,2612.3,5.74204]
[1723903561937,2.3756,2613.0,2612.5,2.87074]
[1723903562137,1.32,2612.9,2612.5,2.87074]
[1723903562296,2.3756,2612.8,2612.5,2.87074]
[1723903564986,2.3756,2612.8,2612.6,2.87064]
[1723903565875,2.3756,2613.1,2612.8,2.87039]
[1723903566079,2.3756,2613.1,2612.7,2.87059]
[1723903566080,2.3756,2613.1,2612.9,2.87036]
[1723903566309,0.1003278,2613.9,2612.9,5.24796]
[1723903566310,2.3756,2613.6,2612.9,5.24796]
[1723903566525,2.3756,2613.6,2612.9,2.87036]
[1723903566526,6.80276,2613.6,2612.9,2.87036]
[1723903566735,6.80276,2613.6,2613.0,2.87025]
[1723903567713,1.32,2613.4,2612.9,2.87036]
[1723903568029,1.32,2613.4,2612.7,2.87051]
[1723903568030,2.74516,2613.3,2612.7,2.87051]
[1723903568189,2.3756,2613.3,2612.9,2.87028]
[1723903568393,2.3756,2613.3,2612.9,5.74057]
[1723903568588,5.24531,2613.5,2612.9,2.87028]
[1723903568788,3.681205,2613.5,2612.9,2.87028]
[1723903569025,2.3756,2613.4,2613.0,2.87023]
[1723903569525,2.3756,2613.4,2612.8,2.87047]
[1723903569728,2.3756,2613.3,2612.8,2.87047]
[1723903570442,5.24565,2613.2,2612.7,2.87053]
[1723903570794,5.24565,2613.2,2612.8,3.0]
[1723903571900,2.3756,2613.1,2612.8,3.0]
[1723903572105,2.87005,2613.2,2612.5,2.87074]
[1723903572106,2.3756,2613.0,2612.5,2.87074]
[1723903572302,2.3756,2613.0,2612.6,3.0]
[1723903573354,2.3756,2613.0,2612.6,5.87068]
[1723903574034,2.3756,2613.0,2612.6,3.0]
[1723903576161,2.3756,2613.0,2612.7,2.87059]
[1723903576866,2.3756,2613.0,2612.7,2.87052]
[1723903578814,2.87007,2613.2,2612.7,2.87052]
[1723903579210,2.402,2613.1,2612.6,3.0]
[1723903579556,2.87039,2612.9,2612.6,3.0]
[1723903579775,2.87039,2612.9,2612.5,3.0]
[1723903580111,2.402,2613.0,2612.5,5.87079]
[1723903580112,5.27226,2613.0,2612.5,5.87079]
[1723903580516,5.27226,2613.0,2612.5,3.0]
[1723903580735,6.1392257,2613.0,2612.4,3.0]
[1723903581058,2.402,2612.8,2612.4,3.0]
[1723903581658,5.27248,2612.8,2612.4,3.0]
[1723903581957,2.402,2612.5,2611.9,2.87137]
[1723903582155,5.27289,2612.5,2611.9,5.74277]
[1723903582413,2.402,2612.5,2612.0,2.87136]
[1723903582722,2.402,2612.3,2611.8,2.87156]
[1723903583082,2.402,2612.3,2611.8,2.87152]
[1723903583236,2.402,2612.3,2611.9,2.87141]
[1723903583788,2.402,2612.3,2611.8,2.87152]
[1723903584086,2.402,2612.3,2611.8,5.74304]
[1723903584252,2.402,2612.3,2611.8,2.87152]
[1723903584646,5.27304,2612.3,2611.8,2.87152]
[1723903585203,2.402,2612.3,2611.8,2.8715]
[1723903585352,2.402,2612.3,2611.8,5.74301]
[1723903585743,2.402,2612.3,2611.9,2.87144]
[1723903586397,2.402,2612.3,2611.8,2.8715]
[1723903586540,2.402,2612.3,2611.8,5.74301]
[1723903587196,5.27303,2612.3,2611.8,2.8715]
[1723903587444,5.27331,2612.1,2611.6,5.8717]
[1723903587671,6.327944,2612.1,2611.6,5.8717]
[1723903588388,6.327944,2612.1,2611.6,3.0]
[1723903588389,2.402,2611.9,2611.6,3.0]
[1723903588604,2.402,2611.9,2611.4,2.87195]
[1723903588605,2.402,2611.8,2611.5,3.0]
[1723903588782,2.402,2611.8,2611.4,2.87201]
[1723903589840,2.8718,2611.6,2611.0,5.7448]
[1723903590089,2.402,2611.5,2611.0,5.7448]
[1723903590330,2.402,2611.5,2611.0,2.87239]
[1723903590532,2.402,2611.5,2611.3,2.87213]
[1723903590690,5.27359,2611.8,2611.3,2.87213]
[1723903590890,5.27359,2611.8,2611.2,5.74433]
[1723903591196,2.402,2611.8,2611.3,2.87205]
[1723903591535,2.402,2611.8,2611.5,2.87188]
[1723903592286,7.45,2611.9,2611.6,2.87178]
[1723903592496,2.402,2612.0,2611.5,5.74372]
[1723903592738,2.402,2612.0,2611.6,2.87172]
[1723903593084,2.402,2612.0,2611.7,2.87168]
[1723903594418,2.402,2612.0,2611.5,2.87184]
[1723903594637,2.402,2612.0,2611.5,5.74367]
[1723903594953,2.402,2612.0,2611.5,5.74368]
[1723903595104,5.27336,2612.0,2611.5,2.87183]
[1723903595915,2.4115,2611.9,2611.4,2.872]
[1723903599493,2.4115,2611.9,2611.5,2.8719]
[1723903601535,5.28297,2611.9,2611.3,5.74411]
[1723903601707,5.28297,2611.9,2611.3,5.7441]
[1723903601708,2.4115,2611.8,2611.3,5.7441]
[1723903601912,5.28313,2611.8,2611.3,2.87205]
[1723903602114,2.4115,2611.8,2611.3,5.74412]
[1723903602311,2.4115,2611.8,2611.4,2.87201]
[1723903602706,2.4115,2611.8,2611.3,5.74411]
[1723903602907,2.4115,2611.8,2611.3,2.87205]
[1723903603107,2.4115,2611.6,2611.1,2.8723]
[1723903603314,2.4115,2611.6,2611.0,3.0]
[1723903603315,5.28336,2611.6,2611.2,3.0]
[1723903603606,5.28336,2611.6,2611.0,5.87244]
[1723903604751,2.87213,2611.4,2610.8,2.87266]
[1723903604902,2.4115,2611.3,2610.8,2.87266]
[1723903606180,2.4115,2611.3,2610.7,2.8727]
[1723903606345,5.28363,2611.3,2610.7,5.74542]
[1723903607147,2.4884,2611.2,2610.7,2.8727]
[1723903607368,2.4884,2611.0,2610.5,2.87294]
[1723903607566,2.8716,2611.8,2610.3,2.87314]
[1723903607567,2.87271,2610.8,2610.3,2.87314]
[1723903607892,2.87301,2610.5,2609.9,2.87358]
[1723903608191,2.4884,2610.7,2610.2,2.87333]
[1723903608399,2.4884,2610.7,2610.3,2.87322]
[1723903608552,2.4884,2610.7,2610.2,2.87333]
[1723903608779,2.4884,2610.7,2610.2,5.74661]
[1723903609765,2.4884,2610.7,2610.3,2.8732]
[1723903611258,2.4884,2610.7,2610.4,2.87308]
[1723903611485,2.4884,2610.9,2610.5,2.87299]
[1723903611675,2.4884,2610.9,2610.6,2.87289]
[1723903612395,2.4884,2610.9,2610.7,2.87277]
[1723903612901,2.4884,2610.9,2610.6,2.87289]
[1723903616611,2.4884,2610.9,2610.2,2.87323]
[1723903616783,2.87273,2610.8,2610.3,3.0]
[1723903618117,2.87273,2610.8,2610.3,5.87322]
[1723903620116,2.87273,2610.8,2610.3,5.87315]
[1723903620317,2.87273,2610.8,2610.3,8.74631]
[1723903620816,2.4884,2610.9,2610.3,8.74632]
[1723903620817,5.36098,2610.9,2610.3,8.74632]
[1723903620995,5.36098,2610.9,2610.3,5.87315]
[1723903622289,2.87274,2610.8,2610.3,5.87315]
[1723903622482,2.4367,2610.6,2610.3,3.0]
[1723903622686,5.30961,2610.6,2610.2,3.0]
[1723903622922,2.4367,2610.5,2610.2,3.0]
[1723903623986,2.4367,2610.5,2610.2,5.87332]
[1723903626824,2.4367,2610.5,2610.3,2.87321]
[1723903627227,2.4841,2610.9,2610.4,2.87312]
[1723903627390,2.4841,2610.9,2610.5,2.873]
[1723903631708,2.4841,2610.9,2610.7,2.87278]
[1723903634548,2.4841,2610.9,2610.7,5.74556]
[1723903634949,2.4841,2610.9,2610.7,2.87278]
[1723903635645,2.4841,2610.9,2610.5,5.74585]
[1723903635833,2.4841,2610.9,2610.6,2.87288]
[1723903637144,2.4841,2610.9,2610.2,3.0]
[1723903637350,2.2969,2610.8,2610.2,2.87325]
[1723903637667,2.2969,2610.8,2610.4,2.87311]
[1723903639621,2.2969,2610.5,2610.0,2.87352]
[1723903639810,2.2969,2610.4,2610.0,2.87352]
[1723903640017,5.74616,2610.5,2609.8,2.87367]
[1723903640018,2.2969,2610.3,2609.8,2.87367]
[1723903640335,2.2969,2610.2,2609.6,2.87393]
[1723903641652,2.87334,2610.3,2609.6,2.87393]
[1723903641653,2.2969,2610.1,2609.7,3.0]
[1723903642150,2.2969,2610.1,2609.7,5.87389]
[1723903642929,2.2969,2610.1,2609.7,8.74778]
[1723903643145,2.2969,2610.1,2609.8,2.87375]
[1723903643845,2.2969,2610.1,2609.7,5.87389]
[1723903644362,2.2969,2610.1,2609.7,8.74771]
[1723903645046,2.2969,2610.1,2609.7,5.87382]
[1723903645245,2.2969,2610.1,2609.7,8.74765]
[1723903646450,2.2969,2610.1,2609.8,2.87375]
[1723903647358,2.2969,2610.1,2609.9,2.87366]
[1723903647930,2.2969,2610.1,2609.9,2.8736]
[1723903648641,2.2969,2610.1,2609.9,5.7472]
[1723903649025,2.290018,2610.1,2609.9,5.7472]
[1723903649446,7.45,2610.7,2609.8,2.2868]
[1723903649670,7.45,2610.7,2610.2,2.87327]
[1723903649965,8.769532,2610.7,2610.2,2.87327]
[1723903650947,7.45,2610.7,2610.4,2.87308]
[1723903651155,2.87241,2611.1,2610.5,2.87295]
[1723903651156,13.19482,2611.1,2610.5,2.87295]
[1723903651347,4.87027271,2611.0,2610.5,2.87295]
[1723903651732,2.87247,2611.0,2610.5,2.87295]
[1723903651935,2.87247,2611.0,2610.4,2.87308]
[1723903652166,5.17208,2610.9,2610.4,2.87308]
[1723903654492,2.2995,2610.8,2610.4,2.87308]
[1723903654646,2.2995,2610.8,2610.0,3.0]
[1723903654647,3.103972,2610.8,2610.0,3.0]
[1723903654851,7.45,2611.1,2610.1,2.87344]
[1723903654852,5.1724,2610.6,2610.1,2.87344]
[1723903655050,2.81674,2610.6,2610.1,5.74688]
[1723903655241,2.2995,2610.6,2610.1,5.74682]
[1723903655436,2.2995,2610.6,2610.1,2.87338]
[1723903655885,2.2995,2610.6,2610.0,5.4501]
[1723903656178,2.4114,2611.0,2610.5,2.87301]
[1723903656334,2.4114,2611.0,2610.6,2.87289]
[1723903658183,2.4114,2611.0,2610.6,5.74572]
[1723903658739,2.4114,2611.0,2610.6,2.87283]
[1723903659479,2.4114,2611.0,2610.4,2.87307]
[1723903659681,2.4114,2611.0,2610.7,2.87278]
[1723903659840,2.4114,2611.0,2610.9,2.87257]
[1723903660265,2.4114,2611.4,2611.0,2.87245]
[1723903660465,2.4114,2611.4,2611.1,2.87228]
[1723903660969,2.4114,2611.4,2611.2,2.87223]
[1723903661244,2.4114,2611.4,2611.2,5.74435]
[1723903661481,2.4114,2611.4,2611.2,2.87217]
[1723903661649,2.4114,2611.4,2611.2,5.74434]
[1723903661843,2.4114,2611.4,2611.2,2.87217]
[1723903662250,7.45,2611.6,2611.5,2.87191]